bitfinex/quotes_SOLUSD_20250611
["timestamp","ask_amount","ask_price","bid_price","bid_amount"]
[1749630902028,10.19655873,166.06,166.01,10.19655873]
[1749630902743,36.19655873,166.07,166.01,10.19655873]
[1749630902944,36.19655873,166.07,166.02,10.19655873]
[1749630903243,36.19655873,166.07,166.01,10.19655873]
[1749630903840,10.19655873,166.06,166.01,10.19655873]
[1749630904751,10.19655873,166.07,166.01,10.19655873]
[1749630905057,36.19655873,166.07,166.01,10.19655873]
[1749630905342,36.19655873,166.07,166.02,10.19655873]
[1749630905515,26.0,166.07,166.03,10.19655873]
[1749630905715,36.19655873,166.07,166.02,10.19655873]
[1749630906247,36.19655873,166.07,166.0,1.559]
[1749630906440,36.19655873,166.07,166.02,10.19655873]
[1749630906944,26.0,166.07,166.0,1.559]
[1749630907148,10.19655873,166.06,166.01,10.19655873]
[1749630907442,36.19655873,166.07,166.01,10.19655873]
[1749630907844,10.19655873,166.06,166.01,10.19655873]
[1749630908648,10.19655873,166.06,166.0,11.75555873]
[1749630909033,10.19655873,166.05,166.0,11.75555873]
[1749630909235,10.19655873,166.04,166.0,1.559]
[1749630910082,10.19655873,166.05,166.0,11.75555873]
[1749630910352,36.19655873,166.07,166.02,10.19655873]
[1749630910537,5.4,166.08,166.06,10.19655873]
[1749630912121,5.4,166.08,166.01,95.9106]
[1749630912334,5.4,166.08,166.06,10.19655873]
[1749630912753,5.4,166.08,166.07,10.19655873]
[1749630913127,6.4701,166.15,166.07,10.19655873]
[1749630913128,10.19655873,166.15,166.07,28.84620759]
[1749630913348,5.4,166.16,166.12,10.19655873]
[1749630913549,5.4,166.16,166.14,10.19655873]
[1749630913746,5.4,166.16,166.13,10.19655873]
[1749630913944,5.4,166.16,166.15,10.19655873]
[1749630914941,15.59655873,166.16,166.08,17.99595873]
[1749630915146,10.19655873,166.13,166.08,17.99595873]
[1749630915361,10.19655873,166.14,166.08,7.7994]
[1749630915533,10.19655873,166.14,166.09,10.19655873]
[1749630916826,10.19655873,166.14,166.08,7.7994]
[1749630917354,10.19655873,166.15,166.1,10.19655873]
[1749630917544,5.4,166.16,166.13,10.19655873]
[1749630918741,5.4,166.16,166.14,10.19655873]
[1749630921059,5.4,166.16,166.1,6.02040409]
[1749630921252,5.4,166.16,166.15,10.19655873]
[1749630921946,5.4,166.16,166.15,11.72025873]
[1749630924358,5.4,166.16,166.15,1.5237]
[1749630924559,5.4,166.16,166.15,11.72025873]
[1749630925079,5.4,166.16,166.1,1.6629]
[1749630925354,5.4,166.16,166.1,11.85945873]
[1749630925537,5.4,166.16,166.12,10.19655873]
[1749630926044,15.59655873,166.16,166.11,10.19655873]
[1749630926237,15.59655873,166.16,166.1,1.6629]
[1749630926438,15.59655873,166.16,166.11,10.19655873]
[1749630927154,10.19655873,166.15,166.1,11.85945873]
[1749630927337,10.19655873,166.14,166.1,1.6629]
[1749630927756,10.19655873,166.15,166.1,11.85945873]
[1749630928757,15.59655873,166.16,166.11,10.19655873]
[1749630929256,10.19655873,166.15,166.1,11.85945873]
[1749630930044,10.19655873,166.14,166.1,1.6629]
[1749630930543,10.19655873,166.15,166.1,11.85945873]
[1749630935349,10.19655873,166.14,166.1,1.6629]
[1749630936353,36.19655873,166.14,166.1,1.6629]
[1749630936673,26.0,166.14,166.1,11.85945873]
[1749630937447,36.19655873,166.14,166.1,1.6629]
[1749630939277,36.19655873,166.14,166.09,10.19655873]
[1749630939663,26.0,166.14,166.1,10.19655873]
[1749630940158,15.59655873,166.16,166.11,10.19655873]
[1749630940563,5.4,166.16,166.11,10.19655873]
[1749630940773,5.4,166.16,166.13,10.19655873]
[1749630940980,5.4,166.16,166.14,10.19655873]
[1749630943265,5.4,166.16,166.15,10.19655873]
[1749630944177,5.4,166.16,166.13,1.5271]
[1749630944963,5.4,166.16,166.13,11.72365873]
[1749630945585,5.4,166.16,166.14,10.19655873]
[1749630945784,5.4,166.16,166.13,1.5271]
[1749630945965,5.4,166.16,166.13,11.72365873]
[1749630946172,5.4,166.16,166.13,1.5271]
[1749630946474,5.4,166.16,166.13,11.72365873]
[1749630949174,36.19655873,166.2,166.15,10.19655873]
[1749630949380,6.0018,166.23,166.14,18.64964886]
[1749630949381,10.19655873,166.21,166.16,10.19655873]
[1749630951494,10.19655873,166.21,166.17,10.19655873]
[1749630951881,10.19655873,166.21,166.16,10.19655873]
[1749630952710,31.4,166.22,166.16,10.19655873]
[1749630952870,10.19655873,166.21,166.16,10.19655873]
[1749630953271,31.4,166.22,166.18,10.19655873]
[1749630953794,5.4,166.22,166.18,10.19655873]
[1749630955880,5.4,166.22,166.19,10.19655873]
[1749630956073,5.4,166.22,166.2,10.19655873]
[1749630962190,5.4,166.22,166.21,10.19655873]
[1749630962580,5.4,166.22,166.21,28.84620759]
[1749630962805,10.19655873,166.29,166.22,18.64964886]
[1749630962983,15.57655873,166.3,166.25,10.19655873]
[1749630963182,15.57655873,166.3,166.22,18.64964886]
[1749630963183,10.19655873,166.29,166.22,18.64964886]
[1749630963396,5.38,166.3,166.23,10.19655873]
[1749630963397,10.19655873,166.28,166.23,10.19655873]
[1749630963903,10.19655873,166.28,166.24,10.19655873]
[1749630964096,10.19655873,166.29,166.24,10.19655873]
[1749630968499,10.19655873,166.28,166.23,10.19655873]
[1749630969102,10.19655873,166.29,166.24,10.19655873]
[1749630969811,10.19655873,166.27,166.22,28.84620759]
[1749630973708,10.19655873,166.27,166.25,10.19655873]
[1749630973709,26.0,166.27,166.25,10.19655873]
[1749630974516,26.0,166.27,166.26,10.19655873]
[1749630975296,26.0,166.27,166.2,30.7566484]
[1749630975297,26.0,166.27,166.21,18.64964886]
[1749630975516,26.0,166.27,166.24,18.64964886]
[1749630975818,26.0,166.27,166.24,28.84620759]
[1749630976015,26.0,166.27,166.25,10.19655873]
[1749630978014,26.0,166.27,166.22,18.64964886]
[1749630978227,26.0,166.27,166.25,10.19655873]
[1749630982504,31.38,166.3,166.26,10.19655873]
[1749630983397,26.0,166.29,166.27,10.19655873]
[1749630983618,26.0,166.29,166.28,10.19655873]
[1749630983816,26.0,166.29,166.27,10.19655873]
[1749630985609,5.38,166.3,166.25,20.29284886]
[1749630985810,26.0,166.27,166.25,1.6432]
[1749630986904,5.38,166.3,166.26,10.19655873]
[1749630987104,31.38,166.3,166.26,10.19655873]
[1749630987723,31.38,166.3,166.25,30.48940759]
[1749630988326,31.38,166.3,166.26,28.84620759]
[1749630988927,5.38,166.3,166.26,18.64964886]
[1749630989129,5.38,166.3,166.27,10.19655873]
[1749630989310,31.38,166.3,166.27,10.19655873]
[1749630989722,5.38,166.3,166.27,10.19655873]
[1749630989930,5.38,166.3,166.28,10.19655873]
[1749630990236,5.38,166.3,166.27,10.19655873]
[1749630991729,5.38,166.3,166.29,28.84620759]
[1749630992133,10.19655873,166.34,166.29,28.84620759]
[1749630992321,26.0,166.33,166.31,28.84620759]
[1749630992518,26.0,166.35,166.32,10.19655873]
[1749630992730,26.0,166.34,166.32,10.19655873]
[1749630993219,26.0,166.33,166.31,10.19655873]
[1749630996541,36.19655873,166.36,166.31,10.19655873]
[1749630998426,5.38,166.38,166.34,10.19655873]
[1749630998825,5.38,166.38,166.35,10.19655873]
[1749631001325,15.57655873,166.38,166.33,10.19655873]
[1749631002836,15.57655873,166.38,166.34,10.19655873]
[1749631003420,5.38,166.38,166.34,10.19655873]
[1749631004240,15.57655873,166.38,166.33,10.19655873]
[1749631004439,10.19655873,166.37,166.33,10.19655873]
[1749631005163,15.57655873,166.38,166.33,10.19655873]
[1749631006345,5.38,166.38,166.33,10.19655873]
[1749631006643,5.38,166.38,166.34,10.19655873]
[1749631006818,15.57655873,166.38,166.34,10.19655873]
[1749631008556,15.57655873,166.38,166.32,18.64964886]
[1749631008844,15.57655873,166.38,166.34,10.19655873]
[1749631009955,5.38,166.38,166.34,10.19655873]
[1749631010253,15.57655873,166.38,166.34,10.19655873]
[1749631010728,15.57655873,166.38,166.32,18.64964886]
[1749631010929,5.38,166.38,166.34,10.19655873]
[1749631011333,5.38,166.38,166.32,18.64964886]
[1749631011545,5.38,166.38,166.34,10.19655873]
[1749631016875,5.38,166.38,166.35,10.19655873]
[1749631017049,5.38,166.38,166.32,108.54964886]
[1749631017249,5.38,166.38,166.35,10.19655873]
[1749631017446,5.38,166.38,166.36,10.19655873]
[1749631019571,5.38,166.38,166.32,124.75867349]
[1749631019871,5.38,166.38,166.36,10.19655873]
[1749631022347,5.38,166.38,166.35,10.19655873]
[1749631023370,5.38,166.38,166.37,10.19655873]
[1749631024881,5.36,166.45,166.38,18.64964886]
[1749631025084,5.36,166.45,166.43,10.19655873]
[1749631025876,31.36,166.45,166.43,10.19655873]
[1749631027977,31.36,166.45,166.41,10.19655873]
[1749631028478,31.36,166.45,166.39,108.54964886]
[1749631028479,31.36,166.45,166.42,10.19655873]
[1749631030859,31.36,166.45,166.43,10.19655873]
[1749631031678,152.06,166.55,166.45,18.64964886]
[1749631031880,10.19655873,166.53,166.49,10.19655873]
[1749631032054,26.0,166.5,166.49,10.19655873]
[1749631032585,10.19655873,166.53,166.49,10.19655873]
[1749631032751,26.0,166.52,166.49,10.19655873]
[1749631033367,36.19655873,166.52,166.48,10.19655873]
[1749631033663,10.19655873,166.52,166.48,10.19655873]
[1749631033858,36.19655873,166.52,166.48,10.19655873]
[1749631034158,36.19655873,166.52,166.47,10.19655873]
[1749631034759,10.19655873,166.51,166.46,28.84620759]
[1749631034965,10.19655873,166.51,166.47,10.19655873]
[1749631035281,26.0,166.52,166.48,10.19655873]
[1749631035477,10.19655873,166.51,166.47,10.19655873]
[1749631035664,36.19655873,166.48,166.43,18.64964886]
[1749631035981,36.19655873,166.48,166.36,158.45987712]
[1749631035982,26.0,166.43,166.35,1.506]
[1749631036188,10.19655873,166.41,166.35,1.506]
[1749631036480,26.0,166.4,166.35,1.506]
[1749631036670,26.0,166.4,166.36,10.19655873]
[1749631037266,10.19655873,166.4,166.35,20.15564886]
[1749631037582,10.19655873,166.39,166.35,20.15564886]
[1749631037766,10.19655873,166.38,166.34,18.64964886]
[1749631038680,10.19655873,166.38,166.32,18.64964886]
[1749631038882,10.19655873,166.38,166.33,10.19655873]
[1749631039070,10.19655873,166.37,166.32,28.84620759]
[1749631039582,10.19655873,166.38,166.33,10.19655873]
[1749631039887,10.19655873,166.34,166.31,1.5227]
[1749631040066,10.19655873,166.33,166.28,28.84620759]
[1749631040481,10.19655873,166.34,166.3,18.64964886]
[1749631040982,10.19655873,166.34,166.27,1.5091]
[1749631040983,10.19655873,166.33,166.28,18.64964886]
[1749631041279,10.19655873,166.33,166.28,28.84620759]
[1749631041465,10.19655873,166.33,166.28,18.64964886]
[1749631041673,26.0,166.39,166.32,10.19655873]
[1749631041980,10.19655873,166.36,166.32,18.64964886]
[1749631042351,26.0,166.39,166.3,10.19655873]
[1749631042352,10.19655873,166.35,166.3,10.19655873]
[1749631042559,10.19655873,166.35,166.28,18.64964886]
[1749631042776,10.19655873,166.32,166.28,18.64964886]
[1749631043769,10.19655873,166.31,166.28,18.64964886]
[1749631044175,10.19655873,166.32,166.28,18.64964886]
[1749631044892,10.19655873,166.31,166.28,18.64964886]
[1749631045357,10.19655873,166.31,166.27,1.5091]
[1749631045785,10.19655873,166.3,166.27,1.5091]
[1749631046085,10.19655873,166.29,166.26,18.64964886]
[1749631046266,10.19655873,166.29,166.25,18.64964886]
[1749631049568,10.19655873,166.3,166.25,18.64964886]
[1749631049768,10.19655873,166.3,166.25,10.19655873]
[1749631050395,10.19655873,166.3,166.24,28.84620759]
[1749631050894,10.19655873,166.29,166.24,28.84620759]
[1749631051276,10.19655873,166.28,166.24,18.64964886]
[1749631051477,10.19655873,166.28,166.23,1.6422]
[1749631051478,10.19655873,166.26,166.23,1.6422]
[1749631051791,10.19655873,166.24,166.19,1.6581]
[1749631051978,26.0,166.26,166.19,1.6581]
[1749631051979,10.19655873,166.23,166.19,1.6581]
[1749631052187,10.19655873,166.21,166.19,1.6581]
[1749631053190,10.19655873,166.22,166.19,1.6581]
[1749631053803,10.19655873,166.2,166.12,1.5539]
[1749631053980,10.19655873,166.19,166.14,10.19655873]
[1749631054175,10.19655873,166.19,166.15,18.64964886]
[1749631055483,26.0,166.23,166.15,18.64964886]
[1749631055798,10.19655873,166.22,166.17,18.64964886]
[1749631056199,26.0,166.21,166.17,18.64964886]
[1749631056399,26.0,166.21,166.13,30.7192492]
[1749631056400,10.19655873,166.18,166.13,28.84620759]
[1749631056599,10.19655873,166.17,166.13,18.64964886]
[1749631057396,10.19655873,166.16,166.12,1.5539]
[1749631057705,10.19655873,166.15,166.12,1.5539]
[1749631057910,10.19655873,166.16,166.12,1.5539]
[1749631060175,10.19655873,166.15,166.12,1.5539]
[1749631061494,10.19655873,166.15,166.11,18.64964886]
[1749631063517,6.43553421,166.13,166.08,106.55768306]
[1749631063705,10.19655873,166.13,166.09,18.64964886]
[1749631064210,10.19655873,166.12,166.09,18.64964886]
[1749631064514,10.19655873,166.12,166.08,1.6241]
[1749631067204,10.19655873,166.11,166.08,18.64964886]
[1749631067405,10.19655873,166.11,166.06,10.19655873]
[1749631067611,10.19655873,166.1,166.06,18.64964886]
[1749631067808,10.19655873,166.08,166.05,18.64964886]
[1749631068115,10.19655873,166.08,166.04,1.6416]
[1749631068488,10.19655873,166.06,166.01,10.19655873]
[1749631068812,10.19655873,166.08,166.02,28.84620759]
[1749631069385,10.19655873,166.08,166.03,10.19655873]
[1749631069782,10.19655873,166.08,166.02,10.19655873]
[1749631070198,10.19655873,166.07,166.02,10.19655873]
[1749631070388,26.0,166.09,166.01,10.19655873]
[1749631070389,10.19655873,166.06,166.01,10.19655873]
[1749631070711,10.19655873,166.06,166.02,18.64964886]
[1749631071784,10.19655873,166.06,166.0,28.84620759]
[1749631073621,10.19655873,166.06,166.01,10.19655873]
[1749631074116,10.19655873,166.05,166.0,28.84620759]
[1749631076215,10.19655873,166.04,166.0,18.64964886]
[1749631076395,26.0,166.05,166.0,18.64964886]
[1749631076595,10.19655873,166.04,166.0,18.64964886]
[1749631078518,10.19655873,166.04,165.99,11.79035873]
[1749631078519,26.0,166.01,165.93,3.02117387]
[1749631078717,10.19655873,165.99,165.95,18.64964886]
[1749631079220,26.0,166.01,165.95,18.64964886]
[1749631079221,10.19655873,166.0,165.95,10.19655873]
[1749631079602,26.0,166.01,165.97,28.84620759]
[1749631079802,26.0,166.0,165.98,10.19655873]
[1749631080008,26.0,166.02,165.98,10.19655873]
[1749631080399,26.0,166.02,165.97,28.84620759]
[1749631080602,10.19655873,166.02,165.97,28.84620759]
[1749631081005,10.19655873,166.01,165.97,18.64964886]
[1749631082329,10.19655873,165.98,165.95,1.5951]
[1749631082619,36.19655873,165.96,165.9,10.19655873]
[1749631082825,10.19655873,165.95,165.9,10.19655873]
[1749631083497,26.0,165.96,165.91,10.19655873]
[1749631083498,10.19655873,165.96,165.91,10.19655873]
[1749631084122,10.19655873,165.96,165.89,18.64964886]
[1749631084324,10.19655873,165.95,165.91,18.64964886]
[1749631084923,10.19655873,165.95,165.88,6.5345]
[1749631085103,10.19655873,166.0,165.89,18.64964886]
[1749631085104,26.0,165.94,165.89,18.64964886]
[1749631085311,10.19655873,165.93,165.89,18.64964886]
[1749631085627,26.0,165.94,165.87,18.64964886]
[1749631085628,26.0,165.9,165.87,18.64964886]
[1749631085827,26.0,165.98,165.89,10.19655873]
[1749631086003,36.19655873,165.93,165.87,18.64964886]
[1749631086205,10.19655873,165.91,165.86,1.5972]
[1749631086414,10.19655873,165.9,165.86,1.5972]
[1749631086625,36.19655873,165.9,165.86,1.5972]
[1749631086830,36.19655873,165.9,165.82,1.5344]
[1749631086831,10.19655873,165.88,165.82,1.5344]
[1749631087009,36.19655873,165.87,165.82,1.5344]
[1749631087206,10.19655873,165.92,165.76,7.56714769]
[1749631087207,10.19655873,165.83,165.76,7.56714769]
[1749631087408,10.19655873,165.84,165.76,7.56714769]
[1749631087609,10.19655873,165.84,165.8,18.64964886]
[1749631087829,36.19655873,165.85,165.8,10.19655873]
[1749631088145,26.0,165.87,165.81,18.64964886]
[1749631088436,6.4207,165.94,165.85,18.64964886]
[1749631088729,26.0,165.89,165.87,10.19655873]
[1749631088932,26.0,165.89,165.88,10.19655873]
[1749631089234,26.0,165.92,165.85,18.64964886]
[1749631089431,26.0,165.92,165.88,10.19655873]
[1749631089737,5.36,165.94,165.9,10.19655873]
[1749631089919,31.36,165.94,165.88,18.64964886]
[1749631090273,41.55655873,165.94,165.89,10.19655873]
[1749631090417,31.36,165.94,165.9,10.19655873]
[1749631090613,5.36,165.94,165.92,10.19655873]
[1749631091227,5.36,165.94,165.92,17.02652879]
[1749631091913,5.36,166.02,165.93,35.67617765]
[1749631092114,17.02652879,165.99,165.94,17.02652879]
[1749631092853,26.0,165.99,165.94,17.02652879]
[1749631093219,17.02652879,165.96,165.91,1.6031]
[1749631093427,17.02652879,165.96,165.91,18.62962879]
[1749631093824,17.02652879,165.97,165.92,17.02652879]
[1749631094041,17.02652879,165.98,165.93,17.02652879]
[1749631094754,43.02652879,165.99,165.94,17.02652879]
[1749631095131,26.0,165.99,165.95,17.02652879]
[1749631095347,43.02652879,165.99,165.95,17.02652879]
[1749631095551,43.02652879,165.99,165.94,17.02652879]
[1749631096937,5.36,166.02,165.94,17.02652879]
[1749631096938,5.36,166.02,165.96,35.67617765]
[1749631097132,17.02652879,166.0,165.96,17.02652879]
[1749631097444,26.0,166.01,165.97,17.02652879]
[1749631097619,5.36,166.02,165.98,17.02652879]
[1749631097823,5.36,166.02,166.0,17.02652879]
[1749631098024,5.36,166.02,166.01,17.02652879]
[1749631098246,5.36,166.02,166.0,17.02652879]
[1749631098426,26.0,166.05,166.0,17.02652879]
[1749631098740,26.0,166.05,165.99,18.64964886]
[1749631098741,26.0,166.05,166.01,17.02652879]
[1749631099230,26.0,166.05,166.02,17.02652879]
[1749631101131,26.0,166.05,165.99,24.67385388]
[1749631101324,26.0,166.05,166.02,17.02652879]
[1749631101839,17.02652879,166.09,166.04,17.02652879]
[1749631102140,26.0,166.08,166.04,17.02652879]
[1749631102324,5.36,166.1,166.06,17.02652879]
[1749631102325,26.0,166.07,166.06,17.02652879]
[1749631103137,5.36,166.1,166.06,17.02652879]
[1749631103338,5.36,166.1,166.0,17.02652879]
[1749631103339,5.36,166.1,166.08,17.02652879]
[1749631104648,17.02652879,166.14,166.09,17.02652879]
[1749631104847,6.3477,166.16,166.11,17.02652879]
[1749631105053,17.02652879,166.16,166.11,17.02652879]
[1749631105293,43.02652879,166.16,166.11,17.02652879]
[1749631105757,26.0,166.16,166.12,17.02652879]
[1749631105958,26.0,166.16,166.13,17.02652879]
[1749631106160,26.0,166.16,166.14,17.02652879]
[1749631106454,26.0,166.16,166.13,17.02652879]
[1749631107047,26.0,166.16,166.14,17.02652879]
[1749631108137,31.42,166.18,166.14,17.02652879]
[1749631109053,1.88131305,166.17,166.14,17.02652879]
[1749631109255,18.90784184,166.17,166.12,17.02652879]
[1749631109441,1.88131305,166.17,166.13,17.02652879]
[1749631109842,1.88131305,166.17,166.15,17.02652879]
[1749631110138,1.88131305,166.17,166.16,17.02652879]
[1749631110655,1.88131305,166.17,166.15,17.02652879]
[1749631111348,1.88131305,166.17,166.14,17.02652879]
[1749631112837,1.88131305,166.17,166.16,17.02652879]
[1749631113159,1.88131305,166.17,166.16,35.67617765]
[1749631113364,1.88131305,166.17,166.14,1.5339]
[1749631113735,18.90784184,166.17,166.12,17.02652879]
[1749631113936,43.02652879,166.16,166.11,17.02652879]
[1749631114651,43.02652879,166.14,166.09,17.02652879]
[1749631114852,26.0,166.14,166.09,17.02652879]
[1749631115066,43.02652879,166.14,166.09,17.02652879]
[1749631115362,26.0,166.14,166.1,17.02652879]
[1749631116460,26.0,166.14,166.11,17.02652879]
[1749631117254,26.0,166.14,166.06,18.64964886]
[1749631117255,10.19657961,166.12,166.06,18.64964886]
[1749631117568,10.19657961,166.12,166.07,10.19657961]
[1749631117970,36.19657961,166.11,166.06,10.19657961]
[1749631118147,10.19657961,166.1,166.05,11.73047961]
[1749631118340,10.19657961,166.09,166.05,1.5339]
[1749631118562,10.19657961,166.1,166.05,10.19657961]
[1749631119344,16.99995071,166.1,166.05,16.99995071]
[1749631119969,16.99995071,166.09,166.04,16.99995071]
[1749631120373,16.99995071,166.08,166.02,18.99964896]
[1749631120566,16.99995071,166.07,166.02,35.99959967]
[1749631120755,16.99995071,166.06,166.02,0.3500001]
[1749631121467,26.0,166.05,166.03,16.99995071]
[1749631121674,16.99995071,166.1,166.04,16.99995071]
[1749631121868,26.0,166.07,166.04,16.99995071]
[1749631122662,26.0,166.07,166.03,16.99995071]
[1749631123267,26.0,166.07,166.02,18.99964896]
[1749631123268,16.99995071,166.09,166.04,16.99995071]
[1749631123448,26.0,166.08,166.04,16.99995071]
[1749631123974,16.99995071,166.09,166.04,16.99995071]
[1749631124158,16.99995071,166.09,166.02,18.99964896]
[1749631124354,16.99995071,166.09,166.04,16.99995071]
[1749631124555,16.99995071,166.1,166.05,16.99995071]
[1749631124764,1.88131305,166.07,166.05,16.99995071]
[1749631125055,1.88131305,166.07,166.06,16.99995071]
[1749631126473,1.88131305,166.07,166.06,35.64959957]
[1749631127274,1.88131305,166.07,166.06,18.64964886]
[1749631127477,1.88131305,166.07,166.06,35.64959957]
[1749631129865,1.88131305,166.07,166.02,0.3500001]
[1749631129866,1.88131305,166.07,166.05,16.99995071]
[1749631130068,1.88131305,166.07,166.04,16.99995071]
[1749631130473,1.88131305,166.07,166.04,18.64964886]
[1749631130859,27.88131305,166.07,166.03,16.99995071]
[1749631131071,44.88126376,166.07,166.02,17.34995081]
[1749631131393,44.88126376,166.07,166.02,0.3500001]
[1749631131688,34.24891305,166.07,166.06,18.57597561]
[1749631132357,34.24891305,166.07,166.02,0.3500001]
[1749631132981,42.99995071,166.03,166.02,0.3500001]
[1749631133365,8.24891305,166.07,166.02,0.3500001]
[1749631133563,26.0,166.05,166.02,0.3500001]
[1749631135767,26.0,166.05,166.03,16.99995071]
[1749631135962,1.88131305,166.07,166.03,16.99995071]
[1749631136165,1.88131305,166.07,166.05,16.99995071]
[1749631136373,27.88131305,166.07,166.02,18.99964896]
[1749631137078,27.88131305,166.07,166.02,6.37325229]
[1749631137079,1.88131305,166.07,166.02,6.37325229]
[1749631137280,1.88131305,166.07,166.06,16.99995071]
[1749631137580,1.88131305,166.07,166.06,41.67151935]
[1749631138562,1.88131305,166.07,166.06,35.64959957]
[1749631139007,1.88131305,166.07,166.06,41.67151935]
[1749631139175,11.8899,166.16,166.06,41.67151935]
[1749631139176,28.88985071,166.16,166.06,41.67151935]
[1749631139488,5.42,166.16,166.14,16.99995071]
[1749631139680,5.42,166.16,166.07,43.58964886]
[1749631139681,5.42,166.16,166.15,16.99995071]
[1749631139982,23.61635071,166.21,166.15,16.99995071]
[1749631140293,26.0,166.18,166.16,16.99995071]
[1749631140467,26.0,166.18,166.16,15.11863766]
[1749631141087,26.0,166.18,166.15,16.99995071]
[1749631141382,16.99995071,166.2,166.15,16.99995071]
[1749631141599,26.0,166.19,166.15,16.99995071]
[1749631142594,26.0,166.19,166.12,18.64964886]
[1749631142595,26.0,166.17,166.14,16.99995071]
[1749631142777,42.99995071,166.18,166.13,16.99995071]
[1749631142965,26.0,166.15,166.13,16.99995071]
[1749631143164,16.99995071,166.14,166.07,18.64964886]
[1749631143376,42.99995071,166.14,166.09,16.99995071]
[1749631143662,26.0,166.14,166.1,16.99995071]
[1749631144368,42.99995071,166.14,166.09,16.99995071]
[1749631145173,26.0,166.14,166.1,16.99995071]
[1749631145567,42.99995071,166.14,166.09,16.99995071]
[1749631146272,16.99995071,166.11,166.06,18.61945071]
[1749631146477,16.99995071,166.11,166.04,18.64964886]
[1749631146478,16.99995071,166.11,166.05,16.99995071]
[1749631146771,16.99995071,166.09,166.04,16.99995071]
[1749631146977,16.99995071,166.09,166.02,1.9687001]
[1749631146978,26.0,166.06,166.02,18.96865081]
[1749631147185,26.0,166.06,166.02,1.9687001]
[1749631147186,42.99995071,166.06,166.02,1.9687001]
[1749631147486,6.5931,166.13,166.02,17.34995081]
[1749631147487,16.99995071,166.07,166.02,17.34995081]
[1749631148502,16.99995071,166.07,166.02,0.3500001]
[1749631148682,16.99995071,166.07,166.02,17.34995081]
[1749631149069,26.0,166.1,166.02,0.3500001]
[1749631149271,16.99995071,166.1,166.05,16.99995071]
[1749631149477,26.0,166.07,166.05,16.99995071]
[1749631149687,26.0,166.07,166.04,16.99995071]
[1749631150571,26.0,166.07,166.02,0.3500001]
[1749631150873,16.99995071,166.06,166.02,0.3500001]
[1749631151074,26.0,166.07,166.02,0.3500001]
[1749631151075,16.99995071,166.05,166.02,0.3500001]
[1749631151375,26.0,166.03,166.02,0.3500001]
[1749631151774,16.99995071,166.04,166.02,0.3500001]
[1749631151986,42.99995071,166.04,166.02,0.3500001]
[1749631153671,26.0,166.04,166.02,0.3500001]
[1749631154572,42.99995071,166.04,166.02,0.3500001]
[1749631155382,26.0,166.04,166.02,0.3500001]
[1749631155581,42.99995071,166.04,166.02,0.3500001]
[1749631156171,16.99995071,166.04,166.02,0.3500001]
[1749631156377,16.99995071,166.03,166.02,0.3500001]
[1749631156795,42.99995071,166.03,166.02,0.3500001]
[1749631156999,26.0,166.03,166.02,0.3500001]
[1749631157188,6.2631,166.06,166.02,0.3500001]
[1749631157189,32.2631,166.06,166.02,0.3500001]
[1749631157398,16.99995071,166.05,166.02,0.3500001]
[1749631157782,16.99995071,166.04,166.02,0.3500001]
[1749631158395,16.99995071,166.03,166.02,0.3500001]
[1749631159296,26.0,166.06,166.02,0.3500001]
[1749631159604,16.99995071,166.05,166.02,0.3500001]
[1749631159782,42.99995071,166.06,166.02,0.3500001]
[1749631160477,26.0,166.06,166.02,17.34995081]
[1749631161098,16.99995071,166.09,166.04,16.99995071]
[1749631161578,16.99995071,166.08,166.03,16.99995071]
[1749631162411,16.99995071,166.08,166.02,1.9618001]
[1749631162412,16.99995071,166.06,166.02,1.9618001]
[1749631162587,26.0,166.11,166.02,1.9618001]
[1749631162588,16.99995071,166.07,166.02,18.96175081]
[1749631162784,16.99995071,166.08,166.03,16.99995071]
[1749631162981,16.99995071,166.09,166.04,16.99995071]
[1749631163306,16.99995071,166.08,166.03,16.99995071]
[1749631163596,11.6706,166.13,166.05,16.99995071]
[1749631163597,26.0,166.1,166.05,16.99995071]
[1749631163810,6.2679,166.17,166.07,16.99995071]
[1749631164014,6.2679,166.17,166.04,18.64964886]
[1749631164015,16.99995071,166.13,166.03,18.64964886]
[1749631164179,16.99995071,166.12,166.07,16.99995071]
[1749631165804,16.99995071,166.13,166.08,16.99995071]
[1749631166795,26.0,166.14,166.04,25.02]
[1749631166796,26.0,166.14,166.04,18.64964886]
[1749631166991,42.99995071,166.14,166.09,16.99995071]
[1749631168779,16.99995071,166.13,166.08,16.99995071]